lending/lending_fUSD_20250501
["ID","MTS","AMOUNT","RATE_DAILY","PERIOD"]
[359494911,1746065437031,-432.14394053,0.00019381,2]
[359494912,1746065437041,-1369.46478426,0.00019381,2]
[359494913,1746065437050,-299.89854075,0.00019381,2]
[359494914,1746065437059,-1369.46478426,0.00019381,2]
[359494915,1746065437069,-635.83209868,0.00019381,2]
[359494916,1746065437080,-411.8444199,0.00019381,2]
[359494931,1746065437370,-321.78826568,0.00019381,2]
[359494936,1746065437402,-261.39721956,0.00019381,2]
[359494954,1746065437562,-1108.0675647,0.00019381,2]
[359494956,1746065437572,-728.53243529,0.00019381,2]
[359494958,1746065437583,-544.02,0.00019381,2]
[359494962,1746065437609,-96.91234897,0.00019381,2]
[359494964,1746065437621,-1369.46478426,0.00019381,2]
[359494966,1746065437632,-124.7032886,0.00019381,2]
[359494968,1746065437642,-1154.48991978,0.00019381,2]
[359494975,1746065438048,-90.27157588,0.00019381,2]
[359494976,1746065438059,-923.61165373,0.00019381,2]
[359494977,1746065438072,-445.85313053,0.00019381,2]
[359494978,1746065438083,-160.61228491,0.00019381,2]
[359494979,1746065438096,-1208.85249935,0.00019381,2]
[359494980,1746065438106,-1369.46478426,0.00019381,2]
[359494981,1746065438117,-1369.46478426,0.00019381,2]
[359494982,1746065438126,-1369.46478426,0.00019381,2]
[359494983,1746065438136,-1369.46478426,0.00019381,2]
[359494984,1746065438147,-1369.46478426,0.00019381,2]
[359494985,1746065438157,-1369.46478426,0.00019381,2]
[359494986,1746065438168,-658.84308061,0.00019381,2]
[359494987,1746065438180,-710.62170365,0.00019381,2]
[359494988,1746065438189,-1369.46478426,0.00019381,2]
[359494989,1746065438199,-194.32351205,0.00019381,2]
[359494990,1746065438211,-1175.14127221,0.00019381,2]
[359494991,1746065438220,-361.37872779,0.00019381,2]
[359494992,1746065438252,-422.74999925,0.00019381,2]
[359494993,1746065438263,-316.73,0.00019381,2]
[359495042,1746065438806,-268.60605722,0.00019381,2]
[359495043,1746065438815,-1206.60143659,0.00019381,2]
[359495044,1746065438829,-162.86334767,0.00019381,2]
[359495045,1746065438838,-1369.46478426,0.00019381,2]
[359495046,1746065438848,-1369.46478426,0.00019381,2]
[359495047,1746065438857,-1369.46478426,0.00019381,2]
[359495048,1746065438866,-1369.46478426,0.00019381,2]
[359495049,1746065438875,-1067.67751549,0.00019381,2]
[359495050,1746065438888,-301.78726877,0.00019381,2]
[359495051,1746065438898,-1369.46478426,0.00019381,2]
[359495052,1746065438907,-1369.46478426,0.00019381,2]
[359495053,1746065438917,-1369.46478426,0.00019381,2]
[359495054,1746065438927,-1369.46478426,0.00019381,2]
[359495055,1746065438937,-1369.46478426,0.00019381,2]
[359495056,1746065438946,-1369.46478426,0.00019381,2]
[359495058,1746065438957,-1369.46478426,0.00019381,2]
[359495060,1746065438967,-1369.46478426,0.00019381,2]
[359495062,1746065438977,-1369.46478426,0.00019381,2]
[359495064,1746065438987,-1369.46478426,0.00019381,2]
[359495066,1746065438996,-1369.46478426,0.00019381,2]
[359495067,1746065439006,-1369.46478426,0.00019381,2]
[359495069,1746065439015,-1369.46478426,0.00019381,2]
[359495070,1746065439025,-1369.46478426,0.00019381,2]
[359495071,1746065439035,-1369.46478426,0.00019381,2]
[359495072,1746065439045,-1369.46478426,0.00019381,2]
[359495073,1746065439055,-1369.46478426,0.00019381,2]
[359495074,1746065439064,-1369.46478426,0.00019381,2]
[359495075,1746065439074,-1369.46478426,0.00019381,2]
[359495076,1746065439085,-1369.46478426,0.00019381,2]
[359495077,1746065439095,-1369.46478426,0.00019381,2]
[359495078,1746065439104,-1369.46478426,0.00019381,2]
[359495079,1746065439114,-1369.46478426,0.00019381,2]
[359495080,1746065439124,-1369.46478426,0.00019381,2]
[359495081,1746065439134,-1369.46478426,0.00019381,2]
[359495082,1746065439144,-1369.46478426,0.00019381,2]
[359495083,1746065439154,-1369.46478426,0.00019381,2]
[359495084,1746065439163,-1369.46478426,0.00019381,2]
[359495085,1746065439173,-1369.46478426,0.00019381,2]
[359495086,1746065439183,-1369.46478426,0.00019381,2]
[359495087,1746065439198,-1369.46478426,0.00019381,2]
[359495088,1746065439207,-1369.46478426,0.00019381,2]
[359495089,1746065439217,-1369.46478426,0.00019381,2]
[359495090,1746065439226,-1369.46478426,0.00019381,2]
[359495091,1746065439236,-1200.0,0.00019381,2]
[359495092,1746065439246,-640.99594058,0.00019391,2]
[359495093,1746065439255,-9300.3,0.00019392,2]
[359495094,1746065439265,-951.73,0.00019392,2]
[359495095,1746065439275,-951.73,0.00019397,2]
[359495096,1746065439284,-2168.7627,0.00019398,2]
[359495097,1746065439294,-500.0,0.00019401,2]
[359495098,1746065439303,-500.0,0.00019401,2]
[359495099,1746065439313,-500.0,0.00019401,2]
[359495100,1746065439322,-500.0,0.00019401,2]
[359495101,1746065439332,-500.0,0.00019401,2]
[359495102,1746065439341,-435.92650229,0.00019401,2]
[359495103,1746065439350,-500.0,0.00019401,2]
[359495104,1746065439360,-500.0,0.00019401,2]
[359495105,1746065439369,-500.0,0.00019401,2]
[359495106,1746065439378,-999.99,0.00019401,2]
[359495107,1746065439388,-15313.92,0.00019402,2]
[359495108,1746065439398,-9827.44,0.00019402,2]
[359495109,1746065439407,-1010.78,0.00019402,2]
[359495110,1746065439416,-150.99,0.00019402,2]
[359495111,1746065439426,-1129.22,0.00019402,2]
[359495112,1746065439436,-499.99,0.00019402,2]
[359495113,1746065439445,-2845.72,0.00019402,2]
[359495114,1746065439456,-150.99,0.00019402,2]
[359495115,1746065439465,-175.1,0.00019402,2]
[359495116,1746065439475,-3194.74,0.00019402,2]
[359495117,1746065439484,-9999.99,0.00019402,2]
[359495118,1746065439494,-951.73,0.00019402,2]
[359495119,1746065439503,-951.73,0.00019407,2]
[359495120,1746065439512,-951.73,0.00019412,2]
[359495121,1746065439521,-951.73,0.00019417,2]
[359495122,1746065439531,-951.73,0.00019422,2]
[359495123,1746065439541,-951.73,0.00019428,2]
[359495124,1746065439664,-951.73,0.00019433,2]
[359495126,1746065439701,-951.73,0.00019438,2]
[359495127,1746065439711,-200.0,0.00019442,2]
[359495128,1746065439720,-951.73,0.00019443,2]
[359495129,1746065439729,-951.73,0.00019448,2]
[359495130,1746065439739,-951.73,0.00019453,2]
[359495131,1746065439749,-951.73,0.00019458,2]
[359495132,1746065439758,-951.73,0.00019463,2]
[359495133,1746065439768,-951.73,0.00019468,2]
[359495134,1746065439777,-503.05435588,0.00019473,2]
[359495135,1746065439786,-500.0,0.00019473,2]
[359495136,1746065439795,-500.0,0.00019473,2]
[359495137,1746065439805,-951.73,0.00019473,2]
[359495138,1746065439814,-951.73,0.00019478,2]
[359495139,1746065439824,-951.73,0.00019484,2]
[359495140,1746065439834,-951.73,0.00019489,2]
[359495142,1746065439844,-200.0,0.00019494,2]
[359495143,1746065439853,-153.86,0.00019521,2]
[359495144,1746065439863,-200.0,0.00019597,2]
[359495145,1746065439872,-1000.0,0.00019598,2]
[359495146,1746065439882,-11905.8447,0.00019598,2]
[359495147,1746065439892,-44059.779,0.00019598,2]
[359495148,1746065439901,-3756.5801,0.00019598,2]
[359495149,1746065439911,-3517.3706,0.00019598,2]
[359495150,1746065439920,-500.0,0.000196,2]
[359495151,1746065439930,-500.0,0.00019673,2]
[359495152,1746065439940,-500.92279031,0.00019673,2]
[359495153,1746065439949,-314.52827151,0.00019673,2]
[359495154,1746065439958,-500.0,0.00019673,2]
[359495155,1746065439969,-500.0,0.00019673,2]
[359495156,1746065439979,-500.0,0.00019673,2]
[359495157,1746065439988,-512.90480929,0.00019673,2]
[359495158,1746065439999,-503.89540493,0.00019673,2]
[359495159,1746065440011,-500.81204882,0.00019673,2]
[359495160,1746065440020,-6358.3347694,0.00019673,2]
[359495161,1746065440030,-92007.5872,0.000197,2]
[359495162,1746065440040,-158.69407634,0.00019773,2]
[359495163,1746065440051,-300.0,0.00019873,2]
[359495164,1746065440061,-162.68185268,0.00019973,2]
[359495165,1746065440071,-187.20036533,0.00019973,2]
[359495166,1746065440081,-330.87895996,0.00019973,2]
[359495167,1746065440092,-500.0,0.00019973,2]
[359495168,1746065440103,-500.43332278,0.00019973,2]
[359495169,1746065440115,-500.0,0.00019973,2]
[359495170,1746065440127,-508.9980583,0.00019973,2]
[359495171,1746065440137,-500.0,0.00019973,2]
[359495172,1746065440148,-500.0,0.00019973,2]
[359495173,1746065440158,-500.0,0.00019973,2]
[359495174,1746065440171,-500.48107556,0.00019973,2]
[359495175,1746065440191,-315.56371199,0.00019973,2]
[359495176,1746065440202,-500.64631312,0.00019973,2]
[359495177,1746065440213,-500.0,0.00019973,2]
[359495178,1746065440223,-270.89897558,0.00019973,2]
[359495179,1746065440233,-500.0,0.00019973,2]
[359495180,1746065440243,-500.59002653,0.00019973,2]
[359495181,1746065440254,-505.45280058,0.00019973,2]
[359495182,1746065440266,-344.27675877,0.00019973,2]
[359495183,1746065440278,-500.0,0.00019973,2]
[359495184,1746065440290,-500.0,0.00019973,2]
[359495185,1746065440309,-211.24478406,0.00019973,2]
[359495186,1746065440319,-500.0,0.00019973,2]
[359495187,1746065440329,-501.41990566,0.00019973,2]
[359495188,1746065440338,-166.66,0.00019974,2]
[359495189,1746065440347,-66051.05018858,0.00019982,2]
[359495190,1746065440366,-5118.92315907,0.00019982,2]
[359495191,1746065440380,-478.736916,0.00019982,2]
[359495203,1746065441154,-15879.08198742,0.00019982,2]
[359495205,1746065441163,-151.0,0.00020008,2]
[359495207,1746065441172,-153.86,0.00020548,2]
[359495208,1746065441182,-166.66,0.00020633,2]
[359495211,1746065441193,-5678.58013432,0.000209,3]
[359495213,1746065441203,-600.36381204,0.00020919,2]
[359495215,1746065441212,-577.39,0.00021106,2]
[359495216,1746065441222,-420.0,0.00021112,2]
[359495218,1746065441232,-309.0,0.00021112,2]
[359495219,1746065441241,-233.95265877,0.00021156,2]
[359495220,1746065441253,-1031.42,0.000212,2]
[359495221,1746065441264,-1680.0,0.00021219,2]
[359495222,1746065441274,-300.0,0.00021243,2]
[359495223,1746065441285,-166.66,0.00021292,2]
[359495224,1746065441295,-250.0,0.00021315,2]
[359495225,1746065441305,-200.0,0.00021329,2]
[359495226,1746065441315,-200.0,0.0002133,2]
[359495227,1746065441326,-153.86,0.00021576,2]
[359495228,1746065441336,-1000.0,0.00021644,2]
[359495229,1746065441346,-1617.07983564,0.00021656,2]
[359495230,1746065441355,-5678.58013427,0.00021762,3]
[359495231,1746065441364,-207.4,0.00021867,2]
[359495232,1746065441374,-150.0,0.00021917,2]
[359495233,1746065441383,-166.66,0.00021952,2]
[359495234,1746065441392,-6358.33476938,0.00021978,2]
[359495235,1746065441402,-153.86,0.00022603,2]
[359495236,1746065441411,-166.66,0.00022611,2]
[359495237,1746065441421,-5678.58013427,0.00022624,4]
[359495238,1746065441430,-1480.873,0.00022847,2]
[359495239,1746065441438,-625.469,0.00022847,2]
[359495240,1746065441447,-156.538,0.00022935,2]
[359495241,1746065441456,-878.0,0.00022935,2]
[359495242,1746065441466,-876.0,0.00022935,2]
[359495243,1746065441476,-4003.0,0.00022935,2]
[359495244,1746065441486,-6750.0,0.00022935,2]
[359495245,1746065441495,-153.488,0.00022987,2]
[359495246,1746065441504,-182.611,0.00022987,2]
[359495247,1746065441513,-259.559,0.00022987,2]
[359495248,1746065441523,-202.863,0.00022987,2]
[359495249,1746065441532,-1340.0,0.00022987,2]
[359495250,1746065441543,-154.083,0.00022987,2]
[359495251,1746065441553,-1015.478,0.00022987,2]
[359495252,1746065441562,-1299.805,0.00022987,2]
[359495253,1746065441574,-797.0,0.00022987,2]
[359495254,1746065441583,-2099.455,0.00022987,2]
[359495255,1746065441594,-1044.991,0.00022987,2]
[359495256,1746065441603,-590.133,0.00022987,2]
[359495257,1746065441614,-587.0,0.00023003,2]
[359495258,1746065441623,-2351.0,0.00023232,2]
[359495259,1746065441635,-215.0738,0.00023236,2]
[359495260,1746065441650,-304.0,0.00023252,2]
[359495261,1746065441661,-166.66,0.0002327,2]
[359495262,1746065441671,-150.0,0.00023287,2]
[359495263,1746065441683,-577.39,0.0002337,2]
[359495264,1746065441693,-5678.58013427,0.00023486,4]
[359495265,1746065441703,-153.86,0.00023631,2]
[359495266,1746065441712,-890.38,0.00023836,2]
[359495267,1746065441723,-1617.07983564,0.00024027,2]
[359495268,1746065441734,-6358.33476938,0.00024283,2]
[359495269,1746065441743,-5678.58013427,0.00024348,5]
[359495270,1746065441753,-223.0315306,0.00024605,2]
[359495271,1746065441762,-150.01986085,0.00024638,2]
[359495272,1746065441771,-150.0,0.00024657,2]
[359495273,1746065441781,-190.0,0.00024658,2]
[359495274,1746065441791,-1000.0,0.00024658,2]
[359495275,1746065441801,-153.86,0.00024658,2]
[359495276,1746065441810,-501.61179285,0.00024773,2]
[359495277,1746065441820,-500.0,0.00024773,2]
[359495278,1746065441829,-500.0,0.00024773,2]
[359495279,1746065441839,-500.0,0.00024773,2]
[359495280,1746065441848,-160.45172935,0.00024773,2]
[359495281,1746065441857,-500.0,0.00024773,2]
[359495282,1746065441866,-500.68964993,0.00024773,2]
[359495283,1746065441876,-500.0,0.00024773,2]
[359495284,1746065441886,-237695.548313,0.000248,3]
[359495285,1746065441895,-83095.2956706,0.000249,3]
[359495286,1746065441905,-1000.0,0.00024952,2]
[359495287,1746065441915,-406.32957185,0.00024952,2]
[359495288,1746065441926,-339.0,0.00025,2]
[359495289,1746065441935,-823.0,0.00025063,2]
[359495290,1746065441945,-1001.24300274,0.00025152,2]
[359495291,1746065441955,-1011.93284645,0.00025152,2]
[359495292,1746065441967,-837.59715316,0.00025152,2]
[359495293,1746065441978,-5678.58013427,0.0002521,5]
[359495294,1746065441988,-1601.0,0.00025435,2]
[359495295,1746065441997,-502.84836243,0.00025452,2]
[359495296,1746065442007,-1002.20572104,0.00025452,2]
[359495297,1746065442016,-474.51724359,0.00025452,2]
[359495298,1746065442028,-1000.0,0.00025452,2]
[359495299,1746065442038,-1000.0,0.00025452,2]
[359495300,1746065442049,-500.68481339,0.00025452,2]
[359495301,1746065442060,-1000.0,0.00025452,2]
[359495302,1746065442070,-677.75275273,0.00025452,2]
[359495303,1746065442080,-1007.79745625,0.00025452,2]
[359495304,1746065442091,-504.94248061,0.00025452,2]
[359495305,1746065442101,-250.0,0.00025603,2]
[359495306,1746065442111,-577.39,0.00025634,2]
[359495307,1746065442122,-153.86,0.00025685,2]
[359495308,1746065442132,-153.0,0.00025935,2]
[359495309,1746065442141,-878.0,0.00025935,2]
[359495310,1746065442150,-876.0,0.00025935,2]
[359495311,1746065442162,-4003.0,0.00025935,2]
[359495312,1746065442172,-5281.696,0.00025935,2]
[359495313,1746065442181,-20773.8239176,0.00025952,3]
[359495314,1746065442191,-5000.0,0.00025962,2]
[359495315,1746065442202,-231.28369723,0.00025974,2]
[359495316,1746065442211,-923.0,0.00025987,2]
[359495317,1746065442222,-1289.0,0.00025987,2]
[359495318,1746065442231,-797.0,0.00025987,2]
[359495319,1746065442241,-580.0,0.00025987,2]
[359495320,1746065442250,-150.0,0.00026027,2]
[359495321,1746065442259,-29711.9435392,0.00026052,3]
[359495322,1746065442269,-20773.8239176,0.00026052,3]
[359495323,1746065442279,-5678.58013427,0.00026072,6]
[359495324,1746065442288,-1019.0,0.00026301,5]
[359495325,1746065442297,-1617.07983564,0.00026399,2]
[359495326,1746065442307,-500.0,0.00026494,2]
[359495327,1746065442317,-373.44777472,0.00026494,2]
[359495328,1746065442327,-500.0,0.00026494,2]
[359495329,1746065442337,-163.01328706,0.00026494,2]
[359495330,1746065442348,-6358.33476938,0.00026588,2]
[359495331,1746065442357,-153.86,0.00026713,2]
[359495332,1746065442368,-29711.9435392,0.00026722,3]
[359495333,1746065442377,-20773.8239176,0.00026722,3]
[359495334,1746065442387,-1262.0,0.00026843,2]
[359495335,1746065442397,-5678.58013427,0.00026934,7]
[359495336,1746065442407,-526.0,0.00027049,2]
[359495337,1746065442419,-1152.0,0.00027309,2]
[359495338,1746065442431,-301.02639515,0.00027343,2]
[359495339,1746065442440,-20773.8239176,0.00027377,3]
[359495340,1746065442449,-150.0,0.00027397,2]
[359495341,1746065442460,-480.54233315,0.00027397,2]
[359495342,1746065442469,-200.0,0.00027397,2]
[359495343,1746065442480,-2466.33,0.00027397,2]
[359495344,1746065442489,-990.39,0.00027397,2]
[359495345,1746065442499,-300.0,0.00027397,2]
[359495346,1746065442510,-522.39978969,0.000274,2]
[359495347,1746065442519,-153.86,0.0002774,2]
[359495348,1746065442531,-500.0,0.00027775,5]
[359495349,1746065442541,-5678.58013427,0.00027797,7]
[359495350,1746065442551,-479.06,0.00027808,2]
[359495351,1746065442561,-824.85,0.00027808,2]
[359495352,1746065442572,-577.39,0.00027897,2]
[359495353,1746065442582,-374.27818171,0.000285,2]
[359495354,1746065442592,-29711.9435392,0.00028638,3]
[359495355,1746065442601,-20773.8239176,0.00028638,3]
[359495356,1746065442610,-5678.58013427,0.00028659,8]
[359495357,1746065442620,-764.0,0.000287,2]
[359495358,1746065442630,-236.0,0.000287,2]
[359495359,1746065442642,-374.0,0.000287,2]
[359495360,1746065442651,-150.0,0.00028767,2]
[359495361,1746065442661,-2466.33,0.00028767,2]
[359495362,1746065442671,-1617.07983564,0.0002877,2]
[359495363,1746065442682,-1026.0,0.000288,2]
[359495364,1746065442691,-6358.33476938,0.00028893,2]
[359495365,1746065442701,-153.0,0.00028935,2]
[359495366,1746065442710,-878.0,0.00028935,2]
[359495369,1746065442881,-876.0,0.00028935,2]
[359495370,1746065442907,-3638.671,0.00028935,2]
[359495371,1746065442916,-923.0,0.00028987,2]
[359495372,1746065442926,-1289.0,0.00028987,2]
[359495373,1746065442936,-797.0,0.00028987,2]
[359495374,1746065442946,-5678.58013427,0.00029521,8]
[359495377,1746065442955,-1613.0,0.00029755,2]
[359495378,1746065442965,-37679.0,0.000299,2]
[359495379,1746065442976,-400.0,0.0002997,2]
[359495381,1746065442986,-500.0,0.0002997,2]
[359495382,1746065442995,-700.0,0.0002997,2]
[359495383,1746065443006,-700.0,0.0002997,2]
[359495384,1746065443018,-800.0,0.0002997,2]
[359495385,1746065443028,-154.11594364,0.0002999,2]
[359495386,1746065443039,-500.0,0.0003,11]
[359495387,1746065443050,-500.0,0.0003,11]
[359495388,1746065443062,-500.0,0.0003,11]
[359495389,1746065443072,-500.0,0.0003,11]
[359495390,1746065443081,-500.0,0.0003,11]
[359495391,1746065443093,-500.0,0.0003,11]
[359495392,1746065443104,-500.0,0.0003,11]
[359495393,1746065443116,-500.0,0.0003,11]
[359495394,1746065443126,-160.0,0.0003,2]
[359495395,1746065443138,-29711.9435392,0.000301,3]
[359495396,1746065443147,-20773.8239176,0.000301,3]
[359495397,1746065443156,-9340.74,0.0003011,2]
[359495398,1746065443168,-150.0,0.00030136,2]
[359495399,1746065443177,-150.52,0.00030137,2]
[359495400,1746065443188,-2466.33,0.00030137,2]
[359495401,1746065443200,-610.0,0.00030137,2]
[359495402,1746065443211,-500.0,0.00030137,5]
[359495403,1746065443220,-166.36249429,0.00030137,2]
[359495404,1746065443231,-577.39,0.00030161,2]
[359495405,1746065443241,-714.88975929,0.00030252,5]
[359495406,1746065443250,-500.0,0.00030252,5]
[359495407,1746065443259,-1000.0,0.00030252,5]
[359495408,1746065443270,-511.2749024,0.00030252,5]
[359495409,1746065443279,-501.99090457,0.00030252,5]
[359495410,1746065443290,-29711.9435392,0.0003029,3]
[359495411,1746065443299,-20773.8239176,0.0003029,3]
[359495412,1746065443310,-5678.58013427,0.00030383,9]
[359495413,1746065443320,-238.039229,0.00030809,2]
[359495414,1746065443331,-237.012001,0.00030809,2]
[359495415,1746065443341,-158.008,0.00030809,2]
[359495416,1746065443352,-237.012003,0.00030809,2]
[359495417,1746065443362,-5569.0,0.000309,3]
[359495418,1746065443371,-206.58909133,0.00031042,2]
[359495419,1746065443380,-150.52,0.00031142,2]
[359495420,1746065443389,-1617.07983564,0.00031142,2]
[359495421,1746065443399,-29711.9435392,0.0003118,3]
[359495422,1746065443409,-41547.6478353,0.0003118,3]
[359495423,1746065443418,-6358.33476938,0.00031199,2]
[359495424,1746065443428,-5678.58013427,0.00031245,9]
[359495425,1746065443437,-150.0,0.00031506,2]
[359495426,1746065443447,-2466.33,0.00031507,2]
[359495427,1746065443456,-158.008,0.00031579,2]
[359495429,1746065443466,-1525.280719,0.00031654,4]
[359495430,1746065443476,-5569.0,0.000318,5]
[359495431,1746065443486,-153.0,0.00031935,2]
[359495432,1746065443496,-878.0,0.00031935,2]
[359495433,1746065443505,-872.661,0.00031935,2]
[359495434,1746065443515,-400.0,0.0003197,2]
[359495435,1746065443524,-700.0,0.0003197,2]
[359495436,1746065443534,-1000.0,0.00031974,5]
[359495437,1746065443543,-1000.0,0.00031974,5]
[359495438,1746065443553,-923.0,0.00031987,2]
[359495439,1746065443564,-295.183,0.00031987,2]
[359495440,1746065443576,-5678.58013427,0.00032107,10]
[359495441,1746065443586,-150.52,0.00032146,2]
[359495442,1746065443596,-20773.8239176,0.0003219,3]
[359495443,1746065443605,-158.008,0.00032349,2]
[359495445,1746065443615,-832.0,0.00032421,2]
[359495448,1746065443624,-577.39,0.00032425,2]
[359495450,1746065443637,-1706.965,0.00032535,32]
[359495453,1746065443650,-277.43803015,0.00032535,32]
[359495456,1746065443660,-158.69407634,0.00032782,15]
[359495460,1746065443671,-150.0,0.00032876,2]
[359495463,1746065443680,-500.0,0.00032877,2]
[359495466,1746065443691,-2466.33,0.00032877,2]
[359495469,1746065443701,-331.98,0.00032877,2]
[359495471,1746065443710,-176.59,0.00032877,30]
[359495473,1746065443720,-29711.9435392,0.00032949,3]
[359495474,1746065443731,-20773.8239176,0.00032949,3]
[359495476,1746065443741,-5678.58013427,0.00032969,11]
[359495478,1746065443751,-160.0,0.00033,2]
[359495479,1746065443761,-150.52,0.00033151,2]
[359495480,1746065443770,-990.39,0.00033165,2]
[359495481,1746065443780,-1000.0,0.00033254,5]
[359495482,1746065443789,-3094.26,0.000334,7]
[359495483,1746065443799,-206.58909132,0.000335,2]
[359495484,1746065443809,-6358.33476938,0.00033504,2]
[359495485,1746065443818,-1617.07983564,0.00033513,2]
[359495486,1746065443828,-29711.9435392,0.00033821,3]
[359495487,1746065443837,-5678.58013427,0.00033831,11]
[359495488,1746065443847,-544.44,0.000339,2]
[359495489,1746065443856,-155.65,0.00034,2]
[359495490,1746065443866,-155.65,0.00034,2]
[359495491,1746065443875,-150.52,0.00034155,2]
[359495492,1746065443885,-1026.0,0.000342,2]
[359495493,1746065443894,-150.0,0.00034246,2]
[359495494,1746065443903,-20773.8239176,0.00034268,3]
[359495495,1746065443912,-500.0,0.00034278,60]
[359495496,1746065443921,-577.39,0.00034689,2]
[359495497,1746065443931,-5678.58013427,0.00034693,12]
[359495498,1746065443940,-439.47,0.000348,31]
[359495499,1746065443950,-439.47,0.000348,31]
[359495500,1746065443960,-439.47,0.000348,31]
[359495501,1746065443970,-439.47,0.000348,31]
[359495502,1746065443981,-439.47,0.000348,31]
[359495503,1746065443991,-439.47,0.000348,31]
[359495504,1746065444000,-439.47,0.000348,31]
[359495505,1746065444011,-439.47,0.000348,31]
[359495506,1746065444020,-439.47,0.000348,31]
[359495507,1746065444029,-439.47,0.000348,31]
[359495508,1746065444039,-439.47,0.000348,31]
[359495509,1746065444048,-439.47,0.000348,31]
[359495510,1746065444058,-544.44,0.000349,2]
[359495511,1746065444067,-153.0,0.00034935,2]
[359495512,1746065444080,-878.0,0.00034935,2]
[359495513,1746065444091,-346.53838418,0.00034971,5]
[359495514,1746065444101,-923.0,0.00034987,2]
[359495515,1746065444111,-359.65006695,0.00035,7]
[359495516,1746065444120,-888.0,0.00035,5]
[359495517,1746065444131,-890.38,0.00035068,2]
[359495518,1746065444142,-150.52,0.0003516,2]
[359495519,1746065444151,-500.0,0.00035374,60]
[359495520,1746065444162,-645.9418004,0.00035471,5]
[359495521,1746065444173,-501.02381,0.00035471,5]
[359495522,1746065444183,-965.65758984,0.00035471,5]
[359495523,1746065444193,-544.44,0.000355,2]
[359495524,1746065444202,-150.0,0.00035503,2]
[359495525,1746065444213,-20773.8239176,0.00035545,3]
[359495526,1746065444224,-5678.58013427,0.00035555,12]
[359495527,1746065444233,-150.0,0.00035571,2]
[359495528,1746065444243,-150.0,0.00035603,2]
[359495529,1746065444253,-150.0,0.00035605,2]
[359495530,1746065444263,-150.0,0.00035616,2]
[359495531,1746065444272,-1000.0,0.00035616,2]
[359495532,1746065444282,-150.0,0.00035658,2]
[359495533,1746065444292,-400.0,0.0003567,2]
[359495534,1746065444301,-700.0,0.0003567,2]
[359495535,1746065444311,-29711.9435392,0.0003568,3]
[359495536,1746065444321,-20773.8239176,0.0003569,3]
[359495537,1746065444332,-24426.08,0.000357,2]
[359495538,1746065444343,-6358.33476938,0.00035809,2]
[359495539,1746065444353,-150.0,0.00035852,2]
[359495540,1746065444363,-29711.9435392,0.00035885,3]
[359495541,1746065444373,-1617.07983564,0.00035885,2]
[359495542,1746065444385,-150.0,0.00035888,2]
[359495543,1746065444394,-20773.8239176,0.00035895,3]
[359495544,1746065444403,-12500.0,0.00035905,5]
[359495545,1746065444413,-29711.9435392,0.00035911,3]
[359495546,1746065444423,-20773.8239176,0.00035911,3]
[359495547,1746065444433,-12500.0,0.00035913,5]
[359495548,1746065444443,-155.65,0.0003592,2]
[359495549,1746065444453,-20773.8239176,0.00035921,3]
[359495550,1746065444465,-12500.0,0.00035922,5]
[359495551,1746065444475,-29711.9435392,0.0003593,3]
[359495552,1746065444484,-12500.0,0.00035931,5]
[359495553,1746065444493,-20773.8239176,0.00035937,3]
[359495554,1746065444503,-29711.9435392,0.00035938,3]
[359495555,1746065444513,-20773.8239176,0.00035938,3]
[359495556,1746065444524,-12500.0,0.0003594,5]
[359495557,1746065444533,-20773.8239176,0.00035948,3]
[359495558,1746065444543,-12500.0,0.00035949,5]
[359495559,1746065444554,-12500.0,0.00035949,5]
[359495560,1746065444563,-20773.8239176,0.00035955,3]